fUST/lending_fUST_20250903
["ID","MTS","AMOUNT","RATE_DAILY","PERIOD"]
[383222954,1756884838406,-9040.01,0.00013719,2]
[383222955,1756884838478,-10000.01,0.00013719,2]
[383222956,1756884838583,-773.07627382,0.00013719,2]
[383222957,1756884838706,-1546.15254764,0.00013719,2]
[383222958,1756884838803,-561.83660356,0.00013717,2]
[383222959,1756884838892,-1968.63188816,0.00013719,2]
[383222960,1756884838925,-2821.23380434,0.00013719,2]
[383222961,1756884839018,-2117.83921222,0.00013719,2]
[383222962,1756884839100,-280.0,0.00013739,2]
[383222963,1756884839182,-469.41401726,0.00013739,2]
[383222964,1756884839259,-500.0,0.00013739,2]
[383222965,1756884839339,-500.0,0.00013739,2]
[383222966,1756884839417,-500.0,0.00013739,2]
[383222967,1756884839494,-500.0,0.00013739,2]
[383222968,1756884839613,-300.79577062,0.00013739,2]
[383222969,1756884839704,-351.40796435,0.00013739,2]
[383222970,1756884840009,-480.0,0.00013716,2]
[383222971,1756884840298,-6831.63690091,0.0001374,2]
[383222972,1756884840394,-561.83660356,0.0001374,2]
[383222973,1756884840467,-6907.70490472,0.0001374,2]
[383222974,1756884840540,-2117.83921222,0.0001374,2]
[383222975,1756884840605,-280.0,0.0001374,2]
[383222976,1756884840675,-469.41401726,0.0001374,2]
[383222977,1756884840751,-500.0,0.00013699,2]
[383222978,1756884840815,-22.553522,0.00013699,2]
[383222979,1756884840825,-477.446478,0.0001374,2]
[383222980,1756884840892,-500.0,0.0001374,2]
[383222981,1756884840964,-500.0,0.0001374,2]
[383222982,1756884841028,-265.50354104,0.0001374,2]
[383222983,1756884841091,-300.79577062,0.0001374,2]
[383222984,1756884841157,-351.40796435,0.0001374,2]
[383222985,1756884841226,-8695.60253006,0.0001374,2]
[383222986,1756884841307,-319.62515827,0.00013717,2]
[383222987,1756884841317,-9680.38484173,0.0001374,2]
[383222988,1756884841381,-480.0,0.0001374,2]
[383222989,1756884841442,-9040.01,0.0001374,2]
[383222990,1756884841508,-10000.01,0.0001374,2]
[383222991,1756884841764,-480.0,0.00013717,2]
[383222992,1756884841786,-20.0,0.0001374,2]
[383222993,1756884842589,-554.98850381,0.00013716,2]
[383222994,1756884842670,-480.0,0.00013717,2]
[383222995,1756884843034,-7930.03299238,0.0001374,2]
[383222996,1756884843153,-4835.16861195,0.0001374,2]
[383222997,1756884843249,-153.355312,0.0001374,2]
[383222998,1756884843560,-22.9621521,0.00013716,2]
[383222999,1756884849343,-197.19904253,0.00013716,2]
[383223000,1756884850751,259.83880537,0.00013579,2]
[383223001,1756884851926,480.0,0.00013715,2]
[383223002,1756884852622,-259.83880537,0.00013716,2]
[383223003,1756884852647,-40.16119463,0.00013717,2]
[383223004,1756884855174,480.0,0.00013715,2]
[383223005,1756884856333,-480.0,0.00013716,2]
[383223006,1756884856416,-1086.64880537,0.00013717,2]
[383223007,1756884856493,-480.0,0.00013717,2]
[383223008,1756884856569,-549.84,0.00013718,2]
[383223009,1756884856648,-1126.81,0.00013718,2]
[383223010,1756884856731,-1126.81,0.00013718,2]
[383223011,1756884857129,-269.0440339,0.00013719,2]
[383223012,1756884857206,-1126.81,0.00013738,2]
[383223013,1756884857277,-300.0,0.00013739,2]
[383223014,1756884857349,-1126.81,0.00013739,2]
[383223015,1756884857419,-1126.81,0.00013739,2]
[383223016,1756884857500,-974.2519322,0.00013739,2]
[383223017,1756884857719,-152.5580678,0.00013739,2]
[383223018,1756884857793,-151.0,0.0001374,2]
[383223019,1756884857863,-151.0,0.0001374,2]
[383223020,1756884857933,-151.0,0.0001374,2]
[383223021,1756884858010,-151.0,0.0001374,2]
[383223022,1756884858103,-154.348101,0.0001374,2]
[383223023,1756884858195,-153.60196,0.0001374,2]
[383223024,1756884858268,-153.372283,0.0001374,2]
[383223025,1756884858342,-1126.81,0.00013745,2]
[383223026,1756884858413,-1126.81,0.00013747,2]
[383223027,1756884858486,-1126.81,0.00013747,2]
[383223028,1756884858647,-1126.81,0.00013747,2]
[383223029,1756884858719,-1126.81,0.00013747,2]
[383223030,1756884858791,-1126.81,0.00013747,2]
[383223031,1756884858862,-151.0,0.00013748,2]
[383223032,1756884858929,-224.043853,0.00013748,2]
[383223033,1756884859001,-1126.81,0.00013756,2]
[383223034,1756884859108,-300.0,0.00013756,2]
[383223035,1756884859358,-826.81,0.00013756,2]
[383223036,1756884859430,-544.503196,0.00013771,2]
[383223037,1756884859518,-449.54,0.00013785,2]
[383223038,1756884859612,-449.54,0.00013785,2]
[383223039,1756884859696,-449.54,0.00013785,2]
[383223040,1756884859769,-449.54,0.00013785,2]
[383223041,1756884859843,-449.54,0.00013785,2]
[383223042,1756884859916,-449.54,0.00013785,2]
[383223043,1756884859988,-449.54,0.00013785,2]
[383223044,1756884860060,-420.4,0.00013785,2]
[383223045,1756884860357,-205.96437268,0.00013845,2]
[383223046,1756884860425,-500.0,0.00013845,2]
[383223047,1756884860497,-500.0,0.00013845,2]
[383223048,1756884860567,-500.0,0.00013845,2]
[383223049,1756884860636,-500.0,0.00013845,2]
[383223050,1756884860708,-500.0,0.00013845,2]
[383223051,1756884860776,-500.0,0.00013845,2]
[383223052,1756884860845,-500.0,0.00013845,2]
[383223053,1756884860917,-500.0,0.00013845,2]
[383223054,1756884860989,-500.0,0.00013845,2]
[383223055,1756884861066,-88.08125464,0.00013845,2]
[383223056,1756884861281,-411.91874536,0.00013845,2]
[383223057,1756884861356,-500.41925065,0.00013845,2]
[383223058,1756884861425,-500.41925065,0.00013845,2]
[383223059,1756884861499,-500.41925065,0.00013845,2]
[383223060,1756884861570,-500.41925065,0.00013845,2]
[383223061,1756884861642,-500.41925065,0.00013845,2]
[383223062,1756884861716,-500.41925065,0.00013845,2]
[383223063,1756884861908,-500.41925065,0.00013845,2]
[383223064,1756884861978,-500.41925065,0.00013845,2]
[383223065,1756884862050,-500.41925065,0.00013845,2]
[383223066,1756884862323,-525.12577519,0.00013845,2]
[383223067,1756884862394,-525.12577519,0.00013845,2]
[383223068,1756884862466,-525.12577519,0.00013845,2]
[383223069,1756884862542,-525.12577519,0.00013845,2]
[383223070,1756884862615,-525.12577519,0.00013845,2]
[383223071,1756884862692,-1126.81,0.00013845,2]
[383223072,1756884862767,-480.0,0.00013846,2]
[383223073,1756884862837,-271.63,0.00013846,2]
[383223074,1756884862906,-482.25092057,0.00013846,2]
[383223075,1756884863252,-481.59387315,0.00013846,2]
[383223076,1756884863324,-480.0,0.00013846,2]
[383223077,1756884863394,-481.40265521,0.00013846,2]
[383223078,1756884863465,-480.0,0.00013846,2]
[383223079,1756884863533,-480.0,0.00013846,2]
[383223080,1756884863612,-480.0,0.00013846,2]
[383223081,1756884863696,-1126.81,0.00013846,2]
[383223082,1756884863791,-853.58694328,0.00013846,2]
[383223083,1756884867710,-174.52933641,0.00013582,2]
[383223084,1756884867989,342.22,0.00012329,2]
[383223085,1756884868748,-94.51469749,0.00013582,2]
[383223086,1756884868758,-207.67263934,0.00013718,2]
[383223087,1756884868820,-272.32736066,0.00013718,2]
[383223088,1756884868829,-480.0,0.00013719,2]
[383223089,1756884868839,-273.22305672,0.00013846,2]
[383223090,1756884868849,-101.25958262,0.00013846,2]
[383223091,1756884869099,-480.0,0.00013715,2]
[383223092,1756884869165,-1025.55041738,0.00013846,2]
[383223093,1756884869230,-571.25,0.00013846,2]
[383223094,1756884869294,-233.27953692,0.00013847,2]
[383223095,1756884869360,-282.84,0.00013847,2]
[383223096,1756884869430,-480.0,0.00013847,2]
[383223097,1756884869497,-494.33,0.00013847,2]
[383223098,1756884869568,-480.0,0.00013847,2]
[383223099,1756884869638,-381.04,0.00013847,2]
[383223100,1756884869708,-151.0,0.00013847,2]
[383223101,1756884869775,-151.0,0.00013847,2]
[383223102,1756884869847,-173.033743,0.00013847,2]
[383223103,1756884869950,-480.0,0.00013717,2]
[383223104,1756884870024,-480.0,0.00013718,2]
[383223105,1756884870095,-1890.87897795,0.00013848,2]
[383223106,1756884870166,-232.90165665,0.00013881,2]
[383223107,1756884870239,-160.0,0.00013881,2]
[383223108,1756884870311,-530.32150586,0.00013881,2]
[383223109,1756884870387,-260.41666667,0.00013881,2]
[383223110,1756884870460,-160.0,0.00013881,2]
[383223111,1756884870529,-160.0,0.00013881,2]
[383223112,1756884870601,-526.57238574,0.00013899,2]
[383223113,1756884870687,-480.0,0.00013716,2]
[383223114,1756884870755,-237.82761426,0.00013899,2]
[383223115,1756884870824,-544.503196,0.00013902,2]
[383223116,1756884870893,-1126.81,0.00013912,2]
[383223117,1756884870959,-1126.81,0.00013912,2]
[383223118,1756884871029,-1126.81,0.00013912,2]
[383223119,1756884871112,-1126.81,0.00013912,2]
[383223120,1756884871181,-1126.96,0.00013912,2]
[383223121,1756884871254,-764.4,0.00013913,2]
[383223122,1756884871325,-369.916,0.00013971,2]
[383223123,1756884871393,-194.5698862,0.00013971,2]
[383223124,1756884871464,-285.374303,0.00013972,2]
[383223125,1756884871534,-480.0,0.00013989,2]
[383223126,1756884871617,-480.0,0.00013989,2]
[383223127,1756884871713,-480.0,0.00013989,2]
[383223128,1756884871791,-480.0,0.00013989,2]
[383223129,1756884871869,-480.0,0.00013989,2]
[383223130,1756884871943,-480.0,0.00013989,2]
[383223131,1756884872015,-480.0,0.00013989,2]
[383223132,1756884872094,-480.0,0.00013989,2]
[383223133,1756884872167,-480.0,0.00013989,2]
[383223134,1756884872239,-480.0,0.00013989,2]
[383223135,1756884872306,-453.83023648,0.00013989,2]
[383223136,1756884872372,-480.0,0.00013989,2]
[383223137,1756884872455,-480.0,0.00013989,2]
[383223138,1756884872522,-480.0,0.00013989,2]
[383223139,1756884872587,-480.0,0.00013989,2]
[383223140,1756884872651,-480.0,0.00013989,2]
[383223141,1756884872718,-480.0,0.00013989,2]
[383223142,1756884872798,-480.0,0.00013989,2]
[383223143,1756884872871,-627.13,0.00013989,2]
[383223144,1756884872941,-480.0,0.00013989,2]
[383223145,1756884873021,-480.0,0.00013989,2]
[383223146,1756884873101,-480.0,0.00013989,2]
[383223147,1756884873441,-480.0,0.00013989,2]
[383223148,1756884873525,-480.0,0.00013989,2]
[383223149,1756884873608,-480.0,0.0001399,2]
[383223150,1756884873694,-480.0,0.0001399,2]
[383223151,1756884873776,-480.0,0.0001399,2]
[383223152,1756884873855,-480.0,0.0001399,2]
[383223153,1756884873935,-595.07,0.0001399,2]
[383223154,1756884874016,-1064.15,0.0001399,2]
[383223155,1756884874092,-441.57,0.0001399,2]
[383223156,1756884874128,342.22,0.00012205,2]
[383223157,1756884874211,-38.43,0.0001399,2]
[383223158,1756884874289,-577.92300867,0.0001399,2]
[383223159,1756884874364,-480.0,0.0001399,2]
[383223160,1756884874434,-480.0,0.0001399,2]
[383223161,1756884874505,-480.0,0.0001399,2]
[383223162,1756884874574,-545.75,0.0001399,2]
[383223163,1756884874645,-857.86,0.0001399,2]
[383223164,1756884874722,-1311.95,0.0001399,2]
[383223165,1756884874808,-836.06,0.0001399,2]
[383223166,1756884874882,-480.0,0.0001399,2]
[383223167,1756884874955,-480.0,0.0001399,2]
[383223168,1756884875032,-480.0,0.0001399,2]
[383223169,1756884875110,-567.17,0.0001399,2]
[383223170,1756884875184,-244.49,0.0001399,2]
[383223171,1756884875258,-480.0,0.0001399,2]
[383223172,1756884875333,-480.0,0.0001399,2]
[383223173,1756884875406,-480.0,0.0001399,2]
[383223174,1756884875479,-464.57,0.0001399,2]
[383223175,1756884875576,-15.43,0.0001399,2]
[383223176,1756884875603,-308.74117391,0.0001399,2]
[383223177,1756884880186,285.19,0.00012329,2]
[383223178,1756884882320,-480.0,0.00013715,2]
[383223179,1756884882331,-87.17,0.00013715,2]
[383223180,1756884882412,-244.49,0.00013715,2]
[383223181,1756884882482,-148.34,0.00013715,2]
[383223182,1756884882493,-331.66,0.00013717,2]
[383223183,1756884882561,-148.34,0.00013717,2]
[383223184,1756884882572,-331.66,0.00013899,2]
[383223185,1756884882636,-480.0,0.00013899,2]
[383223186,1756884882707,-448.9259853,0.00013899,2]
[383223187,1756884882718,-31.0740147,0.00013989,2]
[383223188,1756884882985,-448.9259853,0.00013989,2]
[383223189,1756884883062,-339.19882609,0.0001399,2]
[383223190,1756884883142,-480.0,0.0001399,2]
[383223191,1756884883222,-1667.74,0.0001399,2]
[383223192,1756884883301,-480.0,0.0001399,2]
[383223193,1756884883376,-480.0,0.0001399,2]
[383223194,1756884883452,-480.0,0.0001399,2]
[383223195,1756884883527,-480.0,0.0001399,2]
[383223196,1756884883835,-480.0,0.0001399,2]
[383223197,1756884883906,-480.0,0.0001399,2]
[383223198,1756884883978,-480.0,0.0001399,2]
[383223199,1756884884047,-480.0,0.00013991,2]
[383223200,1756884884117,-480.0,0.00013991,2]
[383223201,1756884884189,-365.76220789,0.00013991,2]
[383223202,1756884884261,-480.0,0.00013991,2]
[383223203,1756884884332,-613.97902316,0.00013991,2]
[383223204,1756884884400,-214.07,0.00013991,2]
[383223205,1756884884471,-571.47,0.00013991,2]
[383223206,1756884884542,-229.4475379,0.00013991,2]
[383223207,1756884884629,-250.5524621,0.00013991,2]
[383223208,1756884884703,-516.35,0.00013991,2]
[383223209,1756884884775,-480.0,0.00013991,2]
[383223210,1756884884847,-480.0,0.00013991,2]
[383223211,1756884884917,-480.0,0.00013991,2]
[383223212,1756884884994,-480.0,0.00013991,2]
[383223213,1756884885082,-480.0,0.00013991,2]
[383223214,1756884885158,-411.95930605,0.00013991,2]
[383223215,1756884885233,-480.0,0.00013991,2]
[383223216,1756884885307,-480.0,0.00013991,2]
[383223217,1756884885382,-442.2864637,0.00013991,2]
[383223218,1756884885413,285.19,0.00012205,2]
[383223219,1756884885510,-37.7135363,0.00013991,2]
[383223220,1756884885591,-480.0,0.00013991,2]
[383223221,1756884885670,-517.45,0.00013991,2]
[383223222,1756884885750,-271.37990241,0.00013991,2]
[383223223,1756884885827,-480.0,0.00013991,2]
[383223224,1756884885902,-585.11,0.00013991,2]
[383223225,1756884885976,-480.0,0.00013991,2]
[383223226,1756884886055,-480.0,0.00013991,2]
[383223227,1756884886134,-480.0,0.00013991,2]
[383223228,1756884886210,-480.0,0.00013991,2]
[383223229,1756884886288,-480.0,0.00013991,2]
[383223230,1756884886401,-480.0,0.00013991,2]
[383223231,1756884886491,-480.0,0.00013991,2]
[383223232,1756884886586,-492.43,0.00013991,2]
[383223233,1756884886665,-480.0,0.00013991,2]
[383223234,1756884886745,-480.0,0.00013991,2]
[383223235,1756884886823,-276.84,0.00013991,2]
[383223236,1756884886900,-480.0,0.00013991,2]
[383223237,1756884886975,-480.0,0.00013991,2]
[383223238,1756884887051,-480.0,0.00013991,2]
[383223239,1756884887124,-480.0,0.00013991,2]
[383223240,1756884887197,-301.47,0.00013991,2]
[383223241,1756884887953,237.65,0.00012329,2]
[383223242,1756884889921,285.19,0.00012083,2]
[383223243,1756884891380,-307.11959579,0.00013715,2]
[383223244,1756884891441,-172.88040421,0.00013715,2]
[383223245,1756884891451,-307.11959579,0.00013715,2]
[383223246,1756884891511,-172.88040421,0.00013715,2]
[383223247,1756884891520,-307.11959579,0.00013717,2]
[383223248,1756884894006,198.05,0.00012329,2]
[383223249,1756884904397,165.04,0.00012329,2]
[383223250,1756884911329,-214.81,0.00013442,2]
[383223251,1756884914812,825.21,0.00012329,2]
[383223252,1756884916512,-1225.19,0.00013442,2]
[383223253,1756884916589,-1440.0,0.00013578,2]
[383223254,1756884916665,-1200.0,0.00013714,2]
[383223255,1756884916747,-480.0,0.00013715,2]
[383223256,1756884916822,-480.0,0.00013715,2]
[383223257,1756884926532,-480.0,0.00013715,2]
[383223258,1756884926615,-300.0,0.00013715,2]
[383223259,1756884926705,-300.0,0.00013715,2]
[383223260,1756884926798,-300.0,0.00013715,2]
[383223261,1756884926882,-300.0,0.00013715,2]
[383223262,1756884926969,-300.0,0.00013715,2]
[383223263,1756884927059,-480.0,0.00013715,2]
[383223264,1756884927146,-480.0,0.00013715,2]
[383223265,1756884927230,-480.0,0.00013715,2]
[383223266,1756884927314,-480.0,0.00013715,2]
[383223267,1756884927399,-480.0,0.00013715,2]
[383223268,1756884927479,-480.0,0.00013715,2]
[383223269,1756884936522,-4380.0,0.00013578,2]
[383223270,1756884936605,-364.04326404,0.00013715,2]
[383223271,1756884936689,-31.92347192,0.00013715,2]
[383223272,1756884936951,-148.07652808,0.00013715,2]
[383223273,1756884939144,-302.13511551,0.00013442,2]
[383223274,1756884945837,-1000.0,0.00013442,2]
[383223275,1756884946574,-3077.86488449,0.00013442,2]
[383223276,1756884950436,-615.14209379,0.00013671,2]
[383223277,1756884952157,157.0,8.1e-07,2]
[383223278,1756884953253,157.0,8.1e-07,2]
[383223279,1756884953469,-372.16924991,0.00013671,2]
[383223280,1756884954200,3530.28023102,0.00013534,2]
[383223281,1756884954275,10000.01,0.00013534,2]
[383223282,1756884954351,10000.01,0.00013534,2]
[383223283,1756884954428,7963.99319722,0.00013534,2]
[383223284,1756884955311,157.0,8.1e-07,2]
[383223285,1756884956336,-300.0,0.00013671,2]
[383223286,1756884956445,157.0,8.1e-07,2]
[383223287,1756884957523,157.0,8.1e-07,2]
[383223288,1756884958272,-232.8375059,0.00013671,2]
[383223289,1756884958798,157.0,8.1e-07,2]
[383223290,1756884959921,157.0,8.1e-07,2]
[383223291,1756884960816,-226.81347349,0.00013671,2]
[383223292,1756884961804,157.0,8.1e-07,2]
[383223293,1756884962998,157.0,8.1e-07,2]
[383223294,1756884963237,937.01680278,0.00013534,2]
[383223295,1756884963317,10000.01,0.00013534,2]
[383223296,1756884963396,10000.01,0.00013534,2]
[383223297,1756884963475,6421.44764946,0.00013534,2]
[383223298,1756884963922,300.0,0.0001367,2]
[383223299,1756884966323,-315.24021121,0.00013671,2]
[383223300,1756884968543,-500.0,0.00013671,2]
[383223301,1756884972755,-300.0,0.00013671,2]
[383223302,1756884974761,-500.0,0.00013671,2]
[383223303,1756884977738,-500.0,0.00013671,2]
[383223304,1756884980914,-500.0,0.00013671,2]
[383223305,1756884984531,-300.0,0.00013671,2]
[383223306,1756884987809,1000.0,0.00013534,2]
[383223307,1756884988677,-500.0,0.00013671,2]
[383223308,1756884991430,822.0236101,0.00012834,2]
[383223309,1756884992195,-300.0,0.00013671,2]
[383223310,1756884992389,197.01520719,0.0001367,2]
[383223311,1756884992482,500.0,0.0001367,2]
[383223312,1756884992607,500.0,0.0001367,2]
[383223313,1756884992932,259.52353325,0.0001367,2]
[383223314,1756884993009,240.47646675,0.0001367,2]
[383223315,1756884993095,500.0,0.0001367,2]
[383223316,1756884993189,500.0,0.0001367,2]
[383223317,1756884993291,500.0,0.0001367,2]
[383223318,1756884993396,500.0,0.0001367,2]
[383223319,1756884993563,500.0,0.0001367,2]
[383223320,1756884993656,500.0,0.0001367,2]
[383223321,1756884993756,500.0,0.0001367,2]
[383223322,1756884993891,500.0,0.0001367,2]
[383223323,1756884994163,500.0,0.0001367,2]
[383223324,1756884994267,500.0,0.0001367,2]
[383223325,1756884994359,500.0,0.0001367,2]
[383223326,1756884994457,500.0,0.0001367,2]
[383223327,1756884994546,615.55662223,0.0001367,2]
[383223328,1756884994650,500.0,0.0001367,2]
[383223329,1756884994739,500.0,0.0001367,2]
[383223330,1756884994820,178.84875723,0.0001367,2]
[383223331,1756884994903,245.7734993,0.0001367,2]
[383223332,1756884994994,500.0,0.0001367,2]
[383223333,1756884995091,500.0,0.0001367,2]
[383223334,1756884995191,500.0,0.0001367,2]
[383223335,1756884995271,219.35465449,0.0001367,2]
[383223336,1756884995345,293.25545775,0.0001367,2]
[383223337,1756884995425,500.0,0.0001367,2]
[383223338,1756884995662,500.0,0.0001367,2]
[383223339,1756884995854,500.0,0.0001367,2]
[383223340,1756884995964,282.1200672,0.0001367,2]
[383223341,1756884996051,500.0,0.0001367,2]
[383223342,1756884996142,500.0,0.0001367,2]
[383223343,1756884996240,500.0,0.0001367,2]
[383223344,1756884996332,500.0,0.0001367,2]
[383223345,1756884996404,500.0,0.0001367,2]
[383223346,1756884996487,500.0,0.0001367,2]
[383223347,1756884996562,500.0,0.0001367,2]
[383223348,1756884996648,500.0,0.0001367,2]
[383223349,1756884996738,500.0,0.0001367,2]
[383223350,1756884996823,500.0,0.0001367,2]
[383223351,1756884996899,500.0,0.0001367,2]
[383223352,1756884996982,500.0,0.0001367,2]
[383223353,1756884997072,500.0,0.0001367,2]
[383223354,1756884997147,357.91397733,0.0001367,2]
[383223355,1756884997225,500.0,0.0001367,2]
[383223356,1756884998181,-500.0,0.00013671,2]
[383223357,1756885004042,566.72049772,0.00013615,2]
[383223358,1756885004113,468.71775487,0.00013615,2]
[383223359,1756885004300,-484.98980505,0.00013671,2]
[383223360,1756885005108,500.0,0.00013534,2]
[383223361,1756885007648,-228.50869703,0.00013671,2]
[383223362,1756885007886,500.0,0.0001367,2]
[383223363,1756885007973,500.0,0.0001367,2]
[383223364,1756885008067,500.0,0.0001367,2]
[383223365,1756885008156,637.58025525,0.0001367,2]
[383223366,1756885008244,500.0,0.0001367,2]
[383223367,1756885008336,500.0,0.0001367,2]
[383223368,1756885008420,500.0,0.0001367,2]
[383223369,1756885008505,500.0,0.0001367,2]
[383223370,1756885008590,437.1125256,0.0001367,2]
[383223371,1756885008701,500.0,0.0001367,2]
[383223372,1756885008815,500.0,0.0001367,2]
[383223373,1756885008944,500.0,0.0001367,2]
[383223374,1756885009049,500.0,0.0001367,2]
[383223375,1756885009184,500.0,0.0001367,2]
[383223376,1756885009273,500.0,0.0001367,2]
[383223377,1756885009374,500.0,0.0001367,2]
[383223378,1756885009454,500.0,0.0001367,2]
[383223379,1756885009535,456.59946428,0.0001367,2]
[383223380,1756885009605,73.48011278,0.0001367,2]
[383223381,1756885009702,500.0,0.0001367,2]
[383223382,1756885012512,-534.0,0.00013671,2]
[383223383,1756885014420,713.49850208,0.00013534,2]
[383223384,1756885014818,8713.03138514,0.00013652,2]
[383223385,1756885014888,2226.66754516,0.00013652,2]
[383223386,1756885019848,500.0,0.0001367,2]
[383223387,1756885019934,500.0,0.0001367,2]
[383223388,1756885020031,500.0,0.0001367,2]
[383223389,1756885020135,500.0,0.0001367,2]
[383223390,1756885020237,-500.0,0.00013671,2]
[383223391,1756885020788,500.0,0.0001367,2]
[383223392,1756885023097,-694.0,0.00013671,2]
[383223393,1756885023564,300.0,0.0001367,2]
[383223394,1756885028401,1200.0,0.0001367,2]
[383223395,1756885028883,-198.06870858,0.00013671,2]
[383223396,1756885033614,-308.99294345,0.00013671,2]
[383223397,1756885037672,300.0,0.0001367,2]
[383223398,1756885039295,-300.0,0.00013671,2]
[383223399,1756885039461,1041.06165203,0.00013534,2]
[383223400,1756885041842,-300.00882275,0.00013671,2]
[383223401,1756885044741,-300.0,0.00013671,2]
[383223402,1756885048239,-300.0,0.00013671,2]
[383223403,1756885053470,2432.28080281,0.00012717,2]
[383223404,1756885053540,7567.71919719,0.00012717,2]
[383223405,1756885056418,-3633.80901228,0.00013671,2]
[383223406,1756885061413,-500.0,0.00013671,2]
[383223407,1756885065193,-500.0,0.00013671,2]
[383223408,1756885068848,294.57,0.00012329,2]
[383223409,1756885070422,-3030.86132658,0.00013671,2]
[383223410,1756885077578,152.18287651,0.0001367,2]
[383223411,1756885078561,1985.5379263,0.00013534,2]
[383223412,1756885078627,2148.27108598,0.00013534,2]
[383223413,1756885079452,245.47,0.00012329,2]
[383223414,1756885079537,-169.97848324,0.00013671,2]
[383223415,1756885083565,300.0,0.0001367,2]
[383223416,1756885087764,3530.86132658,0.00013534,2]
[383223417,1756885089905,204.56,0.00012329,2]
[383223418,1756885090692,-151.90179474,0.00013671,2]
[383223419,1756885096326,3570.84758744,0.00013633,2]
[383223420,1756885096398,10000.01,0.00013633,2]
[383223421,1756885096465,10000.01,0.00013633,2]
[383223422,1756885096533,9457.28190476,0.00013633,2]
[383223423,1756885097046,-300.0,0.00013671,2]
[383223424,1756885100292,170.47,0.00012329,2]
[383223425,1756885106874,-248.40927916,0.00013598,2]
[383223426,1756885106950,-248.40927914,0.00013603,2]
[383223427,1756885107037,-248.40927914,0.00013608,2]
[383223428,1756885107332,248.40927914,0.00013612,2]
[383223429,1756885109055,248.40927914,0.00013617,2]
[383223430,1756885110962,852.36,0.00012329,2]
[383223431,1756885112224,300.0,0.00013534,2]
[383223432,1756885123908,-300.0,0.00013671,2]
[383223433,1756885126463,-300.0,0.00013671,2]
[383223434,1756885135535,-666.0,0.00013671,2]
[383223435,1756885141867,-233.61302026,0.00013671,2]
[383223436,1756885143036,766.63338837,0.00013534,2]
[383223437,1756885144418,300.0,0.0001367,2]
[383223438,1756885151182,5793.74237847,0.00013627,2]
[383223439,1756885151268,10000.01,0.00013627,2]
[383223440,1756885151339,10000.01,0.00013627,2]
[383223441,1756885151410,5630.15042903,0.00013627,2]
[383223442,1756885156265,-401.17015479,0.00013671,2]
[383223443,1756885157349,500.0,0.0001367,2]
[383223444,1756885157416,539.7682197,0.0001367,2]
[383223445,1756885160418,427.84746421,0.00013534,2]
[383223446,1756885160897,198.0133408,0.0001367,2]
[383223447,1756885190308,352.10918824,0.00013656,2]
[383223448,1756885199439,152.18287651,0.0001367,2]
[383223449,1756885200126,1048.68867363,0.00013534,2]
[383223450,1756885203022,300.0,0.0001367,2]
[383223451,1756885203237,300.0,0.0001367,2]
[383223452,1756885210396,551.24980788,0.0001367,2]
[383223453,1756885210479,648.75019212,0.0001367,2]